Cogmind - Beta 14 @@@ ROGUE MODE // 2024.12.08 @ 22:29:14 Player: droogie Result: Destroyed by Y-45 Defender with Heavy Assault Rifle Performance ------------- Evolutions (1) 500 Regions Visited (2) 400 Robots Destroyed (6) 30 Value Destroyed (145) 145 Prototype IDs (0) 0 Alien Tech Used (0) 0 Bonus (0) 0 TOTAL SCORE: 1075 Bonus ------- None Cogmind --------- Core Integrity 0/400 Matter 259/300 Energy 99/100 System Corruption 0% Temperature Cool (36) Movement Core (100) Ox1 Location -9/Materials Parts ------- > --- POWER (1) -------- (None) > --- PROPULSION (4) --- (None) > --- UTILITY (2) ------ Small Storage Unit Signal Interpreter > --- WEAPON (2) ------- (None) > --- INVENTORY (8) ---- Light Ion Engine Aluminum Leg Aluminum Leg Flight Unit Medium Laser Peak State ------------ > --- POWER ------------ (None) > --- PROPULSION ------- Hover Unit Flight Unit Flight Unit Flight Unit > --- UTILITY ---------- Small Storage Unit Signal Interpreter > --- WEAPON ----------- Assault Rifle Mining Claw > --- INVENTORY -------- Light Ion Engine Aluminum Leg Aluminum Leg Medium Laser [Rating: 8] Favorites ----------- Power Light Ion Engine Engine Light Ion Engine Propulsion Light Treads Treads Light Treads Hover Unit Hover Unit Flight Unit Flight Unit Utility Small Storage Unit Storage Small Storage Unit Processor Signal Interpreter Weapon Assault Rifle Energy Gun Small Laser Ballistic Gun Assault Rifle Slashing Weapon Mining Claw Build | -11 -10 -9 ------- Run | Yrd Mat Mat Slots Evolved 2 | . . 2 Power . | . . . Propulsion 2 | . . 2 Utility . | . . . Weapon . | . . . Parts Attached 13 | 6 2 5 Power 1 | 1 . . Engine 1 | 1 . . Core . | . . . Reactor . | . . . Propulsion 7 | 2 2 3 Treads 2 | 2 . . Leg . | . . . Wheel . | . . . Hover 1 | . . 1 Flight 4 | . 2 2 Utility 2 | 1 . 1 Device . | . . . Storage 1 | 1 . . Processor 1 | . . 1 Hackware . | . . . Protection . | . . . Artifact . | . . . Weapon 3 | 2 . 1 Energy Gun 1 | 1 . . Energy Cannon . | . . . Ballistic Gun 1 | 1 . . Ballistic Cannon . | . . . Launcher . | . . . Special Weapon . | . . . Impact Weapon . | . . . Slashing Weapon 1 | . . 1 Piercing Weapon . | . . . Special Melee Weapon . | . . . Unidentified Prototypes . | . . . Parts Lost 7 | . 2 5 Power 1 | . 1 . Propulsion 4 | . . 4 Utility . | . . . Weapon 2 | . 1 1 Highest Loss Streak 5 | . 1 5 To Critical Strikes . | . . . Average Slot Usage (%) 65 | . 77 44 Engine 6 | . 9 . Treads 15 | . 24 . Hover 1 | . . 3 Flight 7 | . 2 15 Storage 12 | . 14 11 Processor 3 | . . 10 Energy Gun 7 | . 12 . Ballistic Gun 9 | . 14 . Slashing Weapon 1 | . . 4 Peak Build Rating 8 | 6 6 8 Average Rating 4 | 4 5 4 On Entrance 3 | . 6 4 Naked Turns . | . . . Heaviest Build 11 | 11 11 9 Greatest Support 40 | 40 40 12 Greatest Overweight (x) 2 | . 2 1 Average Overweight (x) . | . . . Largest Inventory Capacity 8 | 8 8 8 Average Capacity 7 | 7 8 8 Most Carried 6 | 4 6 5 Average Carried 4 | 3 4 4 Final Capacity 8 | 8 8 8 Final Carried 6 | 4 6 5 Class Distribution -------------------- 100% | Mutant Dominant Class ---------------- Mutant | -10/Materials Mutant | -9/Materials Resources | -11 -10 -9 ----------- Run | Yrd Mat Mat Matter Collected 326 | 237 89 . Remotely . | . . . Salvage Created 179 | . 179 . Parts 9 | . 9 . Haulers Intercepted . | . . . Recyclers Shooed . | . . . Parts Field Recycled . | . . . Retrieved Matter . | . . . Parts Self-Destructed . | . . . Prevented . | . . . Kills | -11 -10 -9 ------- Run | Yrd Mat Mat Combat Hostiles Destroyed 6 | . 6 . Guns 6 | . 6 . Classes Destroyed 2 | . 2 . Swarmer 3 | . 3 . Grunt 3 | . 3 . Best Kill Streak 5 | . 5 . Combat Bots Only 5 | . 5 . Max Kills in Single Turn 1 | . 1 . Gunslinging . | . . . Exploded . | . . . Melee . | . . . Uniques/NPCs Destroyed . | . . . Combat | -11 -10 -9 -------- Run | Yrd Mat Mat Hostile Shots Fired 143 | . 72 71 Missed 35 | . 18 17 Damage Taken 1131 | . 532 599 Core 495 | . 95 400 Absorbed by Shields . | . . . Core Remaining (%) 81 | 100 62 . Volleys Fired 25 | . 25 . Largest 2 | . 2 . Hottest 60 | . 60 . Shots Fired 50 | . 50 . Gun 50 | . 50 . Cannon . | . . . Launcher . | . . . Special . | . . . Kinetic 25 | . 25 . Thermal 25 | . 25 . Explosive . | . . . Electromagnetic . | . . . Robot Hit Streak 6 | . 6 . Robot Miss Streak 5 | . 5 . Penetration Max . | . . . Secondary Targets . | . . . Shots Hit Robots 28 | . 28 . Core Hits 11 | . 11 . Critical Kills . | . . . Critical Parts Destroyed . | . . . Critical Strikes . | . . . Melee Attacks 4 | . . 4 Impact . | . . . Slashing 4 | . . 4 Piercing . | . . . Sneak Attacks . | . . . Combat Hostiles . | . . . Follow-up Attacks . | . . . Damage Inflicted 352 | 1 350 1 Guns 350 | . 350 . Cannons . | . . . Explosions . | . . . Melee . | . . . Ramming 2 | 1 . 1 Kinetic 204 | . 204 . Thermal 146 | . 146 . Explosive . | . . . Electromagnetic . | . . . Impact . | . . . Slashing . | . . . Piercing . | . . . Highest Corruption . | . . . Average Corruption . | . . . Corruption Purged . | . . . Corruption Blocked . | . . . Overload Shots . | . . . Overflow Damage . | . . . Projectiles . | . . . Explosions . | . . . Melee . | . . . Knockbacks . | . . . Impact . | . . . Kinetic . | . . . Secondary . | . . . Self-Inflicted Damage . | . . . Shots . | . . . Rammed 2 | 1 . 1 Targets Rammed 2 | 1 . 1 Kicked . | . . . Crushed . | . . . Highest Temperature 157 | . 157 . Average Temperature 88 | . 88 . Received Heat Transfer 342 | . 192 150 Siege Activations . | . . . Robots Corrupted . | . . . Combat Hostiles . | . . . Parts Fried . | . . . Impact Corruptions . | . . . Robots Melted . | . . . Combat Hostiles . | . . . Parts Melted 2 | . 2 . Heat Transferred 325 | . 325 . Parts Sabotaged . | . . . Parts Stolen . | . . . Parts Stripped . | . . . Power Chain Reactions . | . . . Alert | -11 -10 -9 ------- Run | Yrd Mat Mat Peak Influence 176 | . 172 176 Initial 72 | . . 72 Average 79 | . 78 121 Maximum Alert Level . | . . . Low Security (%) 100 | 100 100 100 Level 1 . | . . . Level 2 . | . . . Level 3 . | . . . Level 4 . | . . . Level 5 . | . . . High Security . | . . . Max Security . | . . . Squads Dispatched 2 | . 2 . Investigation 1 | . 1 . Extermination . | . . . Reinforcement 1 | . 1 . Assault . | . . . Garrison . | . . . Intercept . | . . . Searches Triggered . | . . . Construction Impeded . | . . . Haulers Reinforced . | . . . Active Scanning Responses . | . . . Cargo Convoy Interrupts . | . . . Stealth | -11 -10 -9 --------- Run | Yrd Mat Mat Distress Signals 1 | . 1 . Communications Jammed . | . . . Distress Signals . | . . . Times Spotted 29 | . 15 14 Peak Tracking Total 9 | . 8 9 Tactical Retreats 2 | . . 2 Traps | -11 -10 -9 ------- Run | Yrd Mat Mat Traps Triggered . | . . . Indirectly . | . . . Trap Hack Attempts . | . . . Triggered . | . . . Disarmed . | . . . Reprogrammed . | . . . Reused . | . . . Traps Extracted . | . . . Installed . | . . . Triggered . | . . . Machines | -11 -10 -9 ---------- Run | Yrd Mat Mat Machines Disabled . | . . . Max in Single Turn . | . . . Machines Repaired . | . . . Machines Dismantled . | . . . Machines Sabotaged . | . . . Overloaded Fab Kills . | . . . Hacking | -11 -10 -9 --------- Run | Yrd Mat Mat Machines Accessed 3 | . 2 1 Terminals 2 | . 1 1 Fabricators . | . . . Repair Stations . | . . . Recycling Units 1 | . 1 . Scanalyzers . | . . . Garrison Access . | . . . Total Hacks 7 | . 5 2 Successful 4 | . 3 1 Failed 3 | . 2 1 Catastrophic . | . . . Database Lockouts . | . . . Manual 6 | . 4 2 Terminals 5 | . 3 2 Fabricators . | . . . Repair Stations . | . . . Recycling Units 2 | . 2 . Scanalyzers . | . . . Garrison Access . | . . . Terminal Hacks 2 | . 1 1 Zone Layout 2 | . 1 1 Fabricator Hacks . | . . . Repair Station Hacks . | . . . Recycling Unit Hacks 2 | . 2 . Report Inventory 1 | . 1 . Retrieve Components 1 | . 1 . Scanalyzer . | . . . Garrison Access Hacks . | . . . Unauthorized Hacks . | . . . Terminals . | . . . Fabricators . | . . . Repair Stations . | . . . Recycling Units . | . . . Scanalyzers . | . . . Garrison Access . | . . . Data Cores Recovered . | . . . Used . | . . . Hacking Detections 2 | . 2 . Full Trace Events 1 | . 1 . Feedback Events . | . . . Feedback Blocked . | . . . Robot Schematics Acquired . | . . . Robots Built . | . . . Authchips . | . . . Time . | . . . Total Robot Build Rating . | . . . Part Schematics Acquired . | . . . Parts Built . | . . . Authchips . | . . . Time . | . . . Total Part Build Rating . | . . . Parts Repaired . | . . . Time . | . . . Parts Recycled . | . . . Recycled Matter . | . . . Retrieved Matter . | . . . Retrieved Components 3 | . 3 . Parts Scanalyzed . | . . . Part Schematics Acquired . | . . . Parts Damaged . | . . . Bothacking | -11 -10 -9 ------------ Run | Yrd Mat Mat Used RIF Installer . | . . . Robots Hacked . | . . . Non-combat . | . . . Combat . | . . . Robot Hacks Applied . | . . . Relay Couplers Released . | . . . Fabnet Peak Effective % . | . . . Robots Rewired . | . . . Allies Hacked . | . . . Hacks Repelled . | . . . Allies | -11 -10 -9 -------- Run | Yrd Mat Mat Total Allies . | . . . Largest Group . | . . . Highest-Rated Group . | . . . Highest-Rated Ally . | . . . Total Orders . | . . . Ally Attacks . | . . . Total Damage . | . . . Kills . | . . . Allies Corrupted . | . . . Allies Melted . | . . . Intel | -11 -10 -9 ------- Run | Yrd Mat Mat Robot Analysis Total . | . . . Derelict Logs Recovered . | . . . Drone Launches . | . . . Drone Recoveries . | . . . Exploration | -11 -10 -9 ------------- Run | Yrd Mat Mat Turns Passed 409 | 63 224 122 Spaces Moved 342 | 42 133 167 Core 75 | 16 3 56 Treads 99 | 26 73 . Legs . | . . . Wheels . | . . . Hover . | . . . Flight 168 | . 57 111 Fastest Speed 34 | 50 37 34 Average Speed 86 | 118 107 61 Slowest Speed 160 | 160 160 120 Overloaded Moves . | . . . Propulsion Burnouts . | . . . Robots Hopped . | . . . Cave-ins Triggered . | . . . Exploration Rate (%) 20 | 4 35 22 Regions Visited 2 Branch Regions . Pre-discovered Areas . | . . . Known Exits Taken . | . . . Unknown Exits Taken 2 | 1 1 . Scrap Searched . | . . . Spaces Dug 4 | . . 4 Terrain Destroyed 4 | . . 4 Melee 4 | . . 4 Projectile . | . . . AOE . | . . . Terrain Rammed . | . . . Walls Destroyed . | . . . Machines Disabled . | . . . Actions | -11 -10 -9 --------- Run | Yrd Mat Mat Total 393 | 52 163 178 Wait . | . . . Move 341 | 42 132 167 Hop . | . . . Pick Up 6 | 4 2 . Fast Attach 10 | 6 2 2 Attach 2 | . . 2 Detach . | . . . Swap 1 | . . 1 Drop 3 | . 2 1 Fire 25 | . 25 . Melee 4 | . . 4 Ram 1 | . . 1 Kick . | . . . Crush . | . . . Escape Stasis . | . . . Rewire . | . . . Trap . | . . . Miscellaneous . | . . . Route ------- -11/Scrapyard -10/Materials -9/Materials History --------- Turn | Location | Event 8 | -11/Scrapyard | Discovered new exit (range 15) 64 | -11/Scrapyard | Entered Materials 283 | -10/Materials | Discovered new exit (range 16) 288 | -10/Materials | Entered another Materials area 288 | -9/Materials | Evolved 2 slots: Propulsion x2 338 | -9/Materials | Build established: Mutant 384 | -9/Materials | Lost 5 parts (4n1w) 403 | -9/Materials | Core integrity fell below 50% 409 | -9/Materials | Core integrity fell below 20% 410 | -9/Materials | Destroyed by Y-45 Defender with Heavy Assault Rifle Last Messages --------------- GOAL=ESCAPE 00294_ Acquired Signal Interpreter. 00296_ Acquired Mining Claw. 00298_ Dropped Assault Rifle. 00323_ U-05 Engineer builds a Wall. 00326_ C-30 ARC bursts open, deploying its payload. 00326_ S-10 Pest unfolds itself. 00328_ Hover Unit destroyed. 00332_ Flight Unit destroyed. 00337_ Connecting with Terminal... 00337_ Current location identified: Materials >>Layout(Zone) Retrieving Zone 1C layout... Downloaded map data. 00340_ Mining Claw destroyed. 00343_ Flight Unit destroyed. 00358_ K-01 Serf collects debris. 00404_ Slammed into Y-45 Defender. 00410_ Critical hit (Burn: +37). Map ----- +----------------------------------------------------+ | / #????????????????? | | ### # """ #????????????????? | | #?# ! ##### # """ #????????????????? | | ##?### ###???####### """ #### #???????????? | | ?????# #???????????# + #???????????? | | ???### ###?????????##/#####/#### #???????????? | | ???# #?########## #???# #????????????????? | | #### #?# # #???# #????????????????? | | + T #?# """ # #???# #????????????????? | | ### #?# """ # #???# #????????????????? | | #?# #?# """ # ##### #### #???????????? | | #?#######?# # +???????????? | | #?????????# """ + #####???????????? | | #?????????# """ # #???????????????? | | #?????????# """ ##### #????????/###???? | | #?????????# # ####### #???? | | ############+######## #???? | | #???? | | ############+######## k #???? | | ???????# ######## ^ ####### #???? | | ???????# # # #???????? ##???? | | ???????# # """ + """Y #???????????????? | | ???????# # """ # """ Y#???????????????? | | ???????# # """ # """ ####????????????? | | ?????????????????????# #????????????? | | ?????????????????????# @ Y g #????????????? | | ?????????????????????###+####Y#####??????????? | | ?????????????????????????# #??????????? | | ?????????????????????????# """ #??????????? | | ?????????????????????????# """ #??????????? | | ?????????????????????????# """ #??????????? | | ?????????????????????????# #??????????? | | ?????????????????????????# """ !#??????????? | | ?????????????????????????# """ #??????????? | | ?????????????????????????# """ #??????????? | | ?????????????????????????# #??????????? | | ?????????????????????????##########??????????? | | | | | | | | | | | | | | | | | | | | | | | | | | | +----------------------------------------------------+ Best States ------------- Heat Dissipation 28 Energy Generation 10 Energy Capacity 125 Matter Stores 300 Matter Capacity 300 Sight Range 16 Terrain Scan Density 10 Evasion (%) 63 Recoil Reduction 2 Item Schematics ----------------- None Robot Schematics ------------------ None Fabricated ------------ Nothing Alien Tech Used ----------------- None Achievements -------------- None Challenges ------------ None Game ------ Seed BraceAssemblyCompressor Manual? 0 Play Time 00:06:48 Cumulative 12.5 hours Start 2024.12.08 @ 22:24:21 End 2024.12.08 @ 22:29:14 Sessions 1 Manual Loads 0 Difficulty Rogue Special Mode None Game No. 32 Rogue 32 Adventurer 0 Explorer 0 Win Type - Total 0 Types 0/0/0/0/0/0/0/0/0 Lore% 10 Gallery% 17 Achievement% 19 Wizard Run 0 Options --------- Layout 1 ASCII 0 Keyboard 0 Movement Numpad Keybinds 0 Fullscreen 0 Font 28/SmallcapsGlow Map View 50x35 Zoom Use 0% Tactical HUD 1 Map Filters NONE Filters NONE Steam X RUN: 1b0cb4b7-ba03-43cf-a594-3f94a6560d04